bitfinex/quotes_BTCUSD_20230109
["timestamp","ask_amount","ask_price","bid_price","bid_amount"]
[1673303963863,0.362075,17224.0,17223.0,0.58081034]
[1673303964623,0.762075,17224.0,17223.0,0.58081034]
[1673303965145,0.4,17224.0,17223.0,0.58053634]
[1673303965915,0.4,17224.0,17223.0,0.58062511]
[1673303966430,0.4,17224.0,17223.0,0.58053634]
[1673303967179,0.762075,17224.0,17223.0,0.58053634]
[1673303967918,0.5737998,17224.0,17223.0,0.58053634]
[1673303968143,0.9358748,17224.0,17223.0,0.58053634]
[1673303969920,1.19659755,17224.0,17223.0,0.58053634]
[1673303970956,0.9358748,17224.0,17223.0,0.58053634]
[1673303971959,1.19659755,17224.0,17223.0,0.58053634]
[1673303972300,1.19659755,17224.0,17223.0,0.60888541]
[1673303972472,1.19659755,17224.0,17223.0,0.028]
[1673303973540,1.19659755,17224.0,17223.0,0.02827777]
[1673303973792,0.9358748,17224.0,17223.0,0.60889577]
[1673303974041,0.83452255,17224.0,17223.0,0.60889577]
[1673303974296,0.83452255,17224.0,17223.0,1.189236]
[1673303974560,0.83452255,17224.0,17223.0,1.18951377]
[1673303974813,1.00836334,17224.0,17223.0,1.189236]
[1673303975060,1.37043834,17224.0,17223.0,1.189236]
[1673303976116,1.2026605,17224.0,17223.0,1.189236]
[1673303976331,0.8405855,17224.0,17223.0,1.189236]
[1673303976825,0.8405855,17224.0,17223.0,0.608618]
[1673303977069,0.8405855,17224.0,17223.0,0.028]
[1673303978117,0.8405855,17224.0,17222.0,1.670462]
[1673303978366,1.22425223,17223.0,17222.0,1.67082851]
[1673303978862,0.87595591,17223.0,17222.0,1.67082851]
[1673303980393,0.87595591,17223.0,17222.0,1.66870337]
[1673303980875,0.87595591,17223.0,17222.0,1.66835786]
[1673303981166,0.43537041,17223.0,17222.0,1.66835786]
[1673303981403,0.87595591,17223.0,17222.0,1.66835786]
[1673303982165,0.43537041,17223.0,17222.0,1.08770586]
[1673303982416,0.4405855,17223.0,17222.0,1.08770586]
[1673303983644,0.4405855,17223.0,17222.0,0.50707486]
[1673303983914,0.4405855,17223.0,17222.0,1.66837886]
[1673303983915,0.87595053,17223.0,17222.0,1.66837886]
[1673303984427,1.22423699,17223.0,17222.0,1.66837886]
[1673303987726,1.22423699,17223.0,17222.0,1.66872437]
[1673303987980,1.22423699,17223.0,17222.0,1.66837886]
[1673303990380,1.22423699,17223.0,17222.0,1.66872437]
[1673303990645,1.22423699,17223.0,17222.0,1.66837886]
[1673303993130,1.22423699,17223.0,17222.0,1.66872437]
[1673303993377,0.60953449,17223.0,17222.0,1.96872437]
[1673303994126,0.60953449,17223.0,17222.0,1.66872437]
[1673303995408,0.60953449,17223.0,17222.0,1.66837886]
[1673303998453,0.60953449,17223.0,17222.0,2.24903086]
[1673303999955,0.43538872,17223.0,17222.0,2.24903086]
[1673304000728,0.43538872,17223.0,17222.0,2.54931204]
[1673304000990,0.43538872,17223.0,17222.0,2.24931204]
[1673304001764,0.60601349,17223.0,17222.0,2.24931204]
[1673304002533,0.43185611,17223.0,17222.0,2.24931204]
[1673304003806,0.43185611,17223.0,17222.0,2.54931204]
[1673304004323,0.43185611,17223.0,17222.0,2.24931204]
[1673304004568,0.43185611,17223.0,17222.0,2.54931204]
[1673304005592,0.42185611,17223.0,17222.0,2.54931204]
[1673304006879,0.42185611,17223.0,17222.0,1.66866004]
[1673304007645,0.42185611,17223.0,17222.0,2.24931204]
[1673304010567,0.42185611,17223.0,17222.0,2.54931204]
[1673304011269,0.17412908,17223.0,17222.0,2.54931204]
[1673304014072,0.17412908,17224.0,17222.0,2.54931204]
[1673304014293,0.17412908,17224.0,17223.0,1.4]
[1673304014580,0.43521376,17224.0,17223.0,2.741854]
[1673304015343,0.43521376,17224.0,17223.0,2.747854]
[1673304022214,0.78350022,17224.0,17223.0,2.747854]
[1673304022469,0.43521376,17224.0,17223.0,2.747854]
[1673304022707,0.78350022,17224.0,17223.0,2.747854]
[1673304022951,0.60937114,17224.0,17223.0,2.747854]
[1673304024672,1.40681117,17224.0,17223.0,2.747854]
[1673304025137,1.04473617,17224.0,17223.0,2.747854]
[1673304026016,0.78365149,17224.0,17223.0,2.747854]
[1673304026534,0.78365149,17224.0,17223.0,2.74813516]
[1673304027288,0.78365149,17224.0,17223.0,2.747854]
[1673304028019,0.60941404,17224.0,17223.0,2.747854]
[1673304030257,0.60941404,17224.0,17223.0,2.74813516]
[1673304030764,0.60941404,17224.0,17223.0,2.747854]
[1673304031263,0.60941404,17224.0,17223.0,2.74813516]
[1673304031504,0.60941404,17224.0,17223.0,2.747854]
[1673304031997,1.22041311,17224.0,17223.0,2.747854]
[1673304032245,0.78365149,17224.0,17223.0,2.747854]
[1673304032734,0.78365149,17224.0,17223.0,2.76503768]
[1673304033265,0.60948568,17224.0,17223.0,2.76503768]
[1673304038763,0.60948568,17224.0,17223.0,3.06503768]
[1673304039065,0.60948568,17224.0,17223.0,3.06531884]
[1673304041304,0.60948568,17224.0,17223.0,2.76531884]
[1673304043861,0.60948568,17224.0,17223.0,2.76503768]
[1673304047580,0.60948568,17224.0,17223.0,2.76531884]
[1673304047837,0.60948568,17224.0,17223.0,3.06531884]
[1673304048297,0.60948568,17224.0,17223.0,2.76531884]
[1673304048566,0.60948568,17224.0,17223.0,3.06531884]
[1673304048887,0.7836374,17224.0,17223.0,3.06531884]
[1673304049144,0.43535094,17224.0,17223.0,3.06531884]
[1673304050382,0.60948568,17224.0,17223.0,3.06531884]
[1673304050647,0.78364152,17224.0,17223.0,3.06531884]
[1673304050908,0.43535506,17224.0,17223.0,3.06531884]
[1673304051171,0.78364152,17224.0,17223.0,3.06531884]
[1673304051735,0.60948568,17224.0,17223.0,3.06531884]
[1673304051987,0.60948568,17224.0,17223.0,3.06503768]
[1673304054848,0.60948568,17224.0,17223.0,3.06557523]
[1673304055362,0.60948568,17224.0,17223.0,3.06503768]
[1673304056878,0.7836393,17224.0,17223.0,3.06503768]
[1673304057398,0.43535284,17224.0,17223.0,1.76503768]
[1673304057676,0.60948568,17224.0,17223.0,1.76503768]
[1673304060498,1.21498879,17224.0,17223.0,0.02318368]
[1673304060979,2.13723814,17224.0,17223.0,0.0231074]
[1673304064521,1.61498879,17224.0,17223.0,0.0231074]
[1673304071044,2.04981795,17224.0,17223.0,0.0231074]
[1673304071543,2.0498134,17224.0,17223.0,0.0231074]
[1673304074697,1.9839703,17224.0,17223.0,0.0231074]
[1673304074943,1.9839703,17224.0,17223.0,0.6037254]
[1673304075943,1.54469903,17224.0,17223.0,0.6037254]
[1673304076196,1.18262403,17224.0,17223.0,0.6037254]
[1673304076443,1.98510571,17224.0,17223.0,0.6037254]
[1673304076704,1.54469903,17224.0,17223.0,0.6037254]
[1673304076951,1.18262403,17224.0,17223.0,0.6037254]
[1673304077206,1.54469903,17224.0,17223.0,0.6037254]
[1673304077944,1.18262403,17224.0,17223.0,0.6037254]
[1673304078218,1.54469903,17224.0,17223.0,0.6037254]
[1673304078974,1.98401541,17224.0,17223.0,0.6037254]
[1673304079481,1.98402588,17224.0,17223.0,0.6037254]
[1673304079796,1.63621599,17224.0,17223.0,0.6037254]
[1673304080483,1.63621599,17224.0,17223.0,0.0231074]
[1673304080977,1.6150339,17224.0,17223.0,0.0231074]
[1673304081760,2.04981328,17224.0,17223.0,0.0231074]
[1673304084288,1.6150339,17224.0,17223.0,0.02304498]
[1673304088618,2.13728325,17224.0,17223.0,0.02304498]
[1673304090671,1.6150339,17224.0,17223.0,0.02304498]
[1673304091672,2.13728325,17224.0,17223.0,0.02304498]
[1673304100180,2.71786825,17224.0,17223.0,0.02304498]
[1673304105435,2.13728325,17224.0,17223.0,0.02304498]
[1673304106903,2.13728325,17224.0,17223.0,0.02292647]
[1673304116564,1.6150339,17224.0,17223.0,0.02292647]
[1673304117765,2.13742518,17224.0,17223.0,0.02292647]
[1673304118587,2.13754027,17224.0,17223.0,0.02292647]
[1673304120361,1.6150339,17224.0,17223.0,0.02292647]
[1673304121948,1.6150339,17224.0,17223.0,0.02031747]
[1673304123879,2.1956189,17224.0,17223.0,0.02031747]
[1673304129857,2.19550023,17224.0,17223.0,0.02031747]
[1673304133630,1.61491523,17224.0,17223.0,0.02031747]
[1673304137544,1.72392382,17224.0,17223.0,0.02031747]
[1673304137796,2.13756634,17224.0,17223.0,0.02031747]
[1673304138596,1.72392382,17224.0,17223.0,0.02031747]
[1673304138838,1.36184882,17224.0,17223.0,0.02031747]
[1673304139099,1.72392382,17224.0,17223.0,0.02031747]
[1673304139605,1.36184882,17224.0,17223.0,0.02031747]
[1673304139880,1.72392382,17224.0,17223.0,0.02031747]
[1673304140127,1.36184882,17224.0,17223.0,0.02031747]
[1673304144166,1.72392382,17224.0,17223.0,0.02031747]
[1673304144702,1.36184882,17224.0,17223.0,0.02031747]
[1673304145178,1.72392382,17224.0,17223.0,0.02031747]
[1673304146677,1.36184882,17224.0,17223.0,0.02031747]
[1673304146944,1.72392382,17224.0,17223.0,0.02031747]
[1673304147180,1.36184882,17224.0,17223.0,0.02031747]
[1673304148199,1.72392382,17224.0,17223.0,0.02031747]
[1673304148525,1.20127271,17224.0,17223.0,0.02031747]
[1673304149440,0.83919771,17224.0,17223.0,0.02031747]
[1673304149709,1.20127271,17224.0,17223.0,0.02031747]
[1673304150429,0.83919771,17224.0,17223.0,0.02031747]
[1673304151885,0.83919771,17224.0,17223.0,0.02021247]
[1673304152670,1.20127271,17224.0,17223.0,0.02021247]
[1673304153159,1.72392382,17224.0,17223.0,0.02021247]
[1673304154677,1.36184882,17224.0,17223.0,0.02021247]
[1673304154917,1.72392382,17224.0,17223.0,0.02021247]
[1673304155665,1.36184882,17224.0,17223.0,0.02021247]
[1673304155917,1.72392382,17224.0,17223.0,0.02021247]
[1673304156161,1.20127271,17224.0,17223.0,0.02021247]
[1673304156400,0.83919771,17224.0,17223.0,0.02021247]
[1673304158107,1.20127271,17224.0,17223.0,0.02021247]
[1673304159970,0.83919771,17224.0,17223.0,0.02021247]
[1673304160225,1.20127271,17224.0,17223.0,0.02021247]
[1673304160737,1.72392382,17224.0,17223.0,0.02021247]
[1673304161230,1.36184882,17224.0,17223.0,0.02021247]
[1673304161538,1.72392382,17224.0,17223.0,0.02021247]
[1673304161716,0.4,17223.0,17222.0,1.15648247]
[1673304161974,1.27463895,17223.0,17222.0,1.15648247]
[1673304162965,1.28063895,17223.0,17222.0,1.15648247]
[1673304164996,0.88063895,17223.0,17222.0,1.15648247]
[1673304171298,1.22894416,17223.0,17222.0,1.15648247]
[1673304172283,1.22895368,17223.0,17222.0,1.15648247]
[1673304172790,1.22895368,17223.0,17222.0,1.1713273]
[1673304175479,1.22895368,17223.0,17222.0,1.7519793]
[1673304179565,1.23729264,17223.0,17222.0,1.7519793]
[1673304180331,0.61557614,17223.0,17222.0,2.0519793]
[1673304181351,0.44143139,17223.0,17222.0,2.2558903]
[1673304181599,0.44143025,17223.0,17222.0,2.2558903]
[1673304181858,0.44143025,17223.0,17222.0,2.0519793]
[1673304182611,0.61557614,17223.0,17222.0,2.0519793]
[1673304183079,0.44139902,17223.0,17222.0,2.0519793]
[1673304183875,0.78971375,17223.0,17222.0,2.0519793]
[1673304185243,0.44139902,17223.0,17222.0,2.0519793]
[1673304187791,0.43639902,17223.0,17222.0,2.0519793]
[1673304189095,0.78471375,17223.0,17222.0,2.0519793]
[1673304190415,0.43639902,17223.0,17222.0,2.0519793]
[1673304192540,0.001,17223.0,17222.0,2.0519793]
[1673304192797,0.001,17223.0,17222.0,2.2558903]
[1673304204036,0.00091515,17223.0,17222.0,2.2558903]
[1673304211157,0.43539902,17225.0,17222.0,2.2558903]
[1673304211416,0.43539902,17225.0,17223.0,1.7]
[1673304211670,0.43539902,17225.0,17224.0,1.945638]
[1673304211924,0.43539902,17225.0,17224.0,2.041755]
[1673304214107,0.43639902,17225.0,17224.0,2.041755]
[1673304214626,0.43639902,17225.0,17224.0,1.741755]
[1673304217578,0.78471375,17225.0,17224.0,1.741755]
[1673304218084,0.78471375,17225.0,17224.0,2.041755]
[1673304218341,0.43639902,17225.0,17224.0,1.741755]
[1673304218590,0.78471375,17225.0,17224.0,2.041755]
[1673304219091,0.43639902,17225.0,17224.0,2.041755]
[1673304219358,0.61057614,17225.0,17224.0,2.041755]
[1673304219894,0.43628957,17225.0,17224.0,2.041755]
[1673304220376,0.43528957,17225.0,17224.0,2.041755]
[1673304220656,0.43628957,17225.0,17224.0,2.041755]
[1673304222998,0.43628957,17225.0,17224.0,2.04183802]
[1673304224281,0.43628957,17225.0,17224.0,1.74183802]
[1673304224780,0.43628957,17225.0,17224.0,2.04183802]
[1673304225127,0.43628957,17225.0,17224.0,1.74183802]
[1673304225306,0.61057614,17225.0,17224.0,1.74183802]
[1673304225813,0.78461157,17225.0,17224.0,1.74183802]
[1673304226076,0.43629684,17225.0,17224.0,1.74183802]
[1673304226323,0.43629684,17225.0,17224.0,2.04183802]
[1673304227596,0.7846241,17225.0,17224.0,2.04183802]
[1673304227866,0.61057614,17225.0,17224.0,1.74183802]
[1673304228595,0.78462425,17225.0,17224.0,2.04183802]
[1673304228844,0.61057614,17225.0,17224.0,1.74183802]
[1673304230195,0.61057614,17225.0,17224.0,2.04183802]
[1673304230399,0.78464888,17225.0,17224.0,2.04183802]
[1673304230654,0.61057614,17225.0,17224.0,2.04183802]
[1673304231397,0.61057614,17225.0,17224.0,1.74183802]
[1673304237356,1.04589871,17225.0,17224.0,1.72393802]
[1673304238802,0.61057614,17225.0,17224.0,1.72393802]
[1673304239061,1.04589871,17225.0,17224.0,1.72393802]
[1673304239313,0.7846373,17225.0,17224.0,1.72393802]
[1673304241188,1.23228731,17225.0,17224.0,1.72393802]
[1673304242561,0.7846373,17225.0,17224.0,1.72393802]
[1673304245085,0.61058884,17225.0,17224.0,1.72393802]
[1673304245345,0.7846373,17225.0,17224.0,1.723855]
[1673304245629,0.88561223,17225.0,17224.0,0.562685]
[1673304245858,1.24768723,17225.0,17224.0,0.562685]
[1673304246114,0.88561223,17225.0,17224.0,0.562685]
[1673304247151,0.88561223,17225.0,17224.0,0.56434558]
[1673304250243,0.88561223,17225.0,17221.0,0.64797931]
[1673304250244,0.4,17224.0,17221.0,0.64797931]
[1673304250511,0.4,17224.0,17221.0,0.43235498]
[1673304250512,0.41349913,17223.0,17221.0,0.43235498]
[1673304250793,0.362075,17222.0,17220.0,0.77858456]
[1673304251022,0.362075,17222.0,17220.0,0.00015]
[1673304251023,0.43544223,17221.0,17220.0,0.00015]
[1673304251297,0.43544268,17221.0,17220.0,0.00015]
[1673304251549,0.83710326,17221.0,17220.0,0.00015]
[1673304251803,1.01128428,17221.0,17220.0,0.00015]
[1673304252310,1.01128428,17221.0,17219.0,0.78222605]
[1673304252561,1.01128428,17221.0,17220.0,0.14]
[1673304252812,0.83692486,17221.0,17220.0,0.14]
[1673304253077,0.83692486,17221.0,17219.0,1.37617372]
[1673304253589,0.57565756,17221.0,17219.0,1.37617372]
[1673304253840,0.83692486,17221.0,17219.0,1.37617372]
[1673304254110,0.83792486,17221.0,17219.0,1.37617372]
[1673304254640,0.57665756,17221.0,17219.0,1.37617372]
[1673304254877,0.57565756,17221.0,17219.0,1.37617372]
[1673304255134,0.57565756,17221.0,17219.0,0.80922605]
[1673304255391,0.57399698,17221.0,17219.0,0.22850205]
[1673304258721,0.4,17221.0,17219.0,0.22850205]
[1673304259242,0.40166058,17221.0,17219.0,0.22850205]
[1673304260492,0.83692486,17221.0,17219.0,0.02850205]
[1673304260736,1.2685736,17221.0,17219.0,0.02850205]
[1673304260984,1.0073063,17221.0,17219.0,0.02850205]
[1673304261769,1.0073063,17221.0,17219.0,0.00150205]
[1673304262011,1.0073063,17221.0,17219.0,0.02850205]
[1673304265294,0.40166058,17221.0,17219.0,0.00150205]
[1673304265846,0.40166058,17221.0,17219.0,0.02850205]
[1673304266845,0.40166058,17221.0,17219.0,0.00150205]
[1673304267108,1.0073063,17221.0,17219.0,0.02850205]
[1673304267863,0.57565756,17221.0,17219.0,0.02850205]
[1673304268113,0.40166058,17221.0,17219.0,0.02850205]
[1673304268364,0.40166058,17221.0,17219.0,0.00150205]
[1673304268656,0.40166058,17221.0,17219.0,0.02850205]
[1673304271414,0.40166058,17221.0,17219.0,0.00150205]
[1673304271662,0.40166058,17221.0,17219.0,0.02850205]
[1673304273212,0.57565756,17221.0,17219.0,0.02839064]
[1673304273464,0.40166058,17221.0,17219.0,0.02839064]
[1673304274550,0.40166058,17221.0,17219.0,0.00139064]
[1673304274803,0.40166058,17221.0,17219.0,0.02839064]
[1673304275483,0.57565756,17221.0,17219.0,0.83274223]
[1673304281303,0.83692486,17221.0,17219.0,0.83274223]
[1673304285352,1.18528126,17221.0,17219.0,0.83274223]
[1673304285597,0.17399698,17220.0,17219.0,0.83274223]
[1673304286876,0.17399698,17220.0,17219.0,0.80574223]
[1673304287128,0.17399698,17220.0,17219.0,0.83274223]
[1673304288350,0.17399698,17220.0,17219.0,0.80574223]
[1673304288601,0.43526428,17220.0,17219.0,0.83274223]
[1673304290400,0.6096237,17220.0,17219.0,0.83274223]
[1673304290636,1.26567384,17220.0,17219.0,0.83274223]
[1673304290890,1.26567384,17220.0,17219.0,0.80574223]
[1673304291138,1.26567384,17220.0,17219.0,0.83274223]
[1673304292682,1.26563331,17220.0,17219.0,0.83274223]
[1673304292947,0.91731744,17220.0,17219.0,0.83274223]
[1673304294982,0.91731744,17220.0,17219.0,0.80574223]
[1673304296075,0.91831744,17220.0,17219.0,0.80574223]
[1673304302478,0.48299487,17220.0,17219.0,0.80574223]
[1673304302731,0.91840803,17220.0,17219.0,0.80574223]
[1673304305117,0.91840803,17220.0,17219.0,0.80564223]
[1673304314368,0.48299487,17220.0,17219.0,0.80564223]
[1673304315619,0.91838627,17220.0,17219.0,0.80564223]
[1673304315874,0.48299487,17220.0,17219.0,0.80564223]
[1673304316125,0.43639135,17220.0,17219.0,0.80564223]
[1673304316373,0.48299487,17220.0,17219.0,0.80564223]
[1673304319374,0.91839538,17220.0,17219.0,0.80564223]
[1673304324512,0.48199487,17220.0,17219.0,0.80564223]
[1673304325008,0.48199487,17220.0,17219.0,0.83264223]
[1673304326242,0.48199487,17220.0,17219.0,0.80564223]
[1673304326493,0.48299487,17220.0,17219.0,0.80564223]
[1673304329973,0.48199487,17220.0,17219.0,0.80564223]
[1673304330753,0.48299487,17220.0,17219.0,0.80564223]
[1673304337785,0.48199487,17220.0,17219.0,0.80564223]
[1673304338809,0.48299487,17220.0,17219.0,0.80564223]
[1673304344159,0.48299487,17220.0,17219.0,0.00129064]
[1673304347129,0.48199487,17220.0,17219.0,0.00129064]
[1673304348163,0.48299487,17220.0,17219.0,0.00129064]
[1673304348669,1.00564598,17220.0,17219.0,0.00119506]
[1673304349429,1.43729472,17220.0,17219.0,0.00119506]
[1673304349646,1.83729472,17220.0,17219.0,0.00119506]
[1673304350226,2.19936972,17220.0,17219.0,0.00119506]
[1673304355919,2.19836972,17220.0,17219.0,0.00119506]
[1673304356164,2.19836972,17220.0,17219.0,0.02819506]
[1673304356418,2.19836972,17220.0,17219.0,0.00119506]
[1673304356666,2.19936972,17220.0,17219.0,0.00119506]
[1673304363449,1.83729472,17220.0,17219.0,0.00119506]
[1673304367052,1.31464361,17220.0,17219.0,0.00119506]
[1673304367588,0.88299487,17220.0,17219.0,0.00119506]
[1673304368328,1.40564598,17220.0,17219.0,0.00119506]
[1673304368578,1.40464598,17220.0,17219.0,0.00119506]
[1673304368830,1.40464598,17220.0,17219.0,0.02819506]
[1673304369079,1.83629472,17220.0,17219.0,0.02819506]
[1673304369328,1.40464598,17220.0,17219.0,0.02819506]
[1673304369788,1.40464598,17220.0,17219.0,0.00119506]
[1673304370047,1.40564598,17220.0,17219.0,0.00119506]
[1673304371583,1.83729472,17220.0,17219.0,0.00119506]
[1673304371842,1.40564598,17220.0,17219.0,0.00119506]
[1673304372334,0.88299487,17220.0,17219.0,0.00119506]
[1673304373572,0.88299487,17220.0,17219.0,0.00110287]
[1673304374817,1.83729472,17220.0,17219.0,0.00110287]
[1673304375312,1.40564598,17220.0,17219.0,0.00110287]
[1673304376555,1.83729472,17220.0,17219.0,0.00110287]
[1673304376810,2.19936972,17220.0,17219.0,0.00110287]
[1673304378581,1.83729472,17220.0,17219.0,0.00110287]
[1673304378826,1.40564598,17220.0,17219.0,0.00110287]
[1673304379305,1.83729472,17220.0,17219.0,0.00110287]
[1673304379556,2.19936972,17220.0,17219.0,0.00110287]
[1673304380057,1.40564598,17220.0,17219.0,0.00110287]
[1673304386377,1.76772098,17220.0,17219.0,0.00110287]
[1673304386623,1.83729472,17220.0,17219.0,0.00110287]
[1673304386875,1.76772098,17220.0,17219.0,0.00110287]
[1673304387146,1.40564598,17220.0,17219.0,0.00110287]
[1673304387397,1.40464598,17220.0,17219.0,0.00110287]
[1673304387649,1.76672098,17220.0,17219.0,0.00110287]
[1673304388117,2.19936972,17220.0,17219.0,0.00110287]
[1673304388870,1.76772098,17220.0,17219.0,0.00110287]
[1673304389135,1.40564598,17220.0,17219.0,0.00110287]
[1673304389651,1.76772098,17220.0,17219.0,0.00110287]
[1673304389908,1.40564598,17220.0,17219.0,0.00110287]
[1673304390677,2.19936972,17220.0,17219.0,0.00110287]
[1673304391150,1.83729472,17220.0,17219.0,0.00110287]
[1673304391394,2.19936972,17220.0,17219.0,0.00110287]
[1673304394188,2.19936972,17220.0,17219.0,0.00103796]
[1673304398719,1.76772098,17220.0,17219.0,0.00103796]
[1673304398956,1.83729472,17220.0,17219.0,0.00103796]
[1673304399215,2.19936972,17220.0,17219.0,0.00103796]
[1673304401461,1.40564598,17220.0,17219.0,0.00103796]
[1673304402630,1.40464598,17220.0,17219.0,0.00103796]
[1673304402897,1.76672098,17220.0,17219.0,0.08149796]
[1673304403157,1.40464598,17220.0,17219.0,0.02803796]
[1673304403405,1.40564598,17220.0,17219.0,0.02803796]
[1673304403672,1.40464598,17220.0,17219.0,0.08149796]
[1673304403923,1.40564598,17220.0,17219.0,0.08149796]
[1673304404440,0.88299487,17220.0,17219.0,0.08149796]
[1673304406134,1.40564598,17220.0,17219.0,0.08149796]
[1673304406377,0.88299487,17220.0,17219.0,0.08149796]
[1673304406896,1.40564598,17220.0,17219.0,0.08149796]
[1673304407363,0.88299487,17220.0,17219.0,0.08149796]
[1673304413138,0.88199487,17220.0,17219.0,0.08149796]
[1673304413637,0.88299487,17220.0,17219.0,0.08149796]
[1673304416658,0.88299487,17220.0,17219.0,0.00103796]
[1673304417406,0.88299487,17220.0,17219.0,0.08149796]
[1673304417774,0.88299487,17220.0,17219.0,0.08139651]
[1673304423438,0.88299487,17220.0,17219.0,0.00093651]
[1673304423960,1.40564598,17220.0,17219.0,0.00093651]
[1673304427956,1.40564598,17220.0,17219.0,0.08139651]
[1673304427957,0.88299487,17220.0,17219.0,0.08139651]
[1673304429025,0.88299487,17220.0,17219.0,0.00093651]
[1673304429543,1.24506987,17220.0,17219.0,0.00093651]
[1673304429835,1.40564598,17220.0,17219.0,0.00093651]
[1673304432281,1.40464598,17220.0,17219.0,0.00093651]
[1673304433048,1.40564598,17220.0,17219.0,0.00093651]
[1673304433756,1.40464598,17220.0,17219.0,0.00093651]
[1673304434006,1.40564598,17220.0,17219.0,0.00093651]
[1673304434264,1.40464598,17220.0,17219.0,0.00093651]
[1673304434511,1.40564598,17220.0,17219.0,0.00693651]
[1673304435011,0.88299487,17220.0,17219.0,0.00693651]
[1673304435231,1.40564598,17220.0,17219.0,0.00693651]
[1673304435927,1.76772098,17220.0,17219.0,0.00693651]
[1673304436184,2.19936972,17220.0,17219.0,0.00693651]
[1673304437510,1.76772098,17220.0,17219.0,0.00693651]
[1673304437764,1.40564598,17220.0,17219.0,0.00693651]
[1673304438867,1.40564598,17220.0,17219.0,0.00684354]
[1673304439882,1.76772098,17220.0,17219.0,0.00684354]
[1673304440180,2.19936972,17220.0,17219.0,0.00684354]
[1673304440434,1.76772098,17220.0,17219.0,0.00684354]
[1673304440941,1.40464598,17220.0,17219.0,0.00084354]
[1673304441187,1.40464598,17220.0,17219.0,0.02784354]
[1673304441413,1.40464598,17220.0,17219.0,0.00084354]
[1673304441629,1.40564598,17220.0,17219.0,0.00684354]
[1673304442899,1.40464598,17220.0,17219.0,0.00084354]
[1673304443145,1.40464598,17220.0,17219.0,0.02784354]
[1673304443422,0.88199487,17220.0,17219.0,0.02784354]
[1673304443675,1.40464598,17220.0,17219.0,0.02784354]
[1673304444057,0.88199487,17220.0,17219.0,0.02784354]
[1673304444557,1.76672098,17220.0,17219.0,0.02784354]
[1673304444800,1.83629472,17220.0,17219.0,0.00084354]
[1673304445052,2.19936972,17220.0,17219.0,0.00084354]
[1673304448091,1.83729472,17220.0,17219.0,0.00084354]
[1673304448572,2.19936972,17220.0,17219.0,0.00084354]
[1673304449701,1.76772098,17220.0,17219.0,0.00084354]
[1673304449948,1.40564598,17220.0,17219.0,0.00084354]
[1673304451877,0.88299487,17220.0,17219.0,0.00084354]
[1673304459358,0.88199487,17220.0,17219.0,0.00084354]
[1673304459604,0.88299487,17220.0,17219.0,0.00084354]
[1673304462705,1.75440258,17220.0,17219.0,0.00084354]
[1673304463943,1.74940258,17220.0,17219.0,0.00084354]
[1673304465765,2.11147758,17220.0,17219.0,0.00084354]
[1673304466964,1.74940258,17220.0,17219.0,0.00084354]
[1673304467205,2.11147758,17220.0,17219.0,0.00084354]
[1673304467460,1.74940258,17220.0,17219.0,0.00084354]
[1673304467718,2.54312632,17220.0,17219.0,0.00084354]
[1673304467964,2.63412869,17220.0,17219.0,0.00084354]
[1673304468207,3.06577743,17220.0,17219.0,0.00084354]
[1673304468444,2.54312632,17220.0,17219.0,0.00084354]
[1673304468705,3.06577743,17220.0,17219.0,0.00084354]
[1673304468942,2.63412869,17220.0,17219.0,0.00084354]
[1673304469182,2.27205369,17220.0,17219.0,0.00084354]
[1673304469436,2.63412869,17220.0,17219.0,0.00084354]
[1673304470696,2.27205369,17220.0,17219.0,0.00084354]
[1673304470952,2.63412869,17220.0,17219.0,0.00084354]
[1673304471448,2.27205369,17220.0,17219.0,0.00084354]
[1673304471948,2.63412869,17220.0,17219.0,0.00084354]
[1673304472430,2.27205369,17220.0,17219.0,0.00084354]
[1673304472679,2.63412869,17220.0,17219.0,0.00084354]
[1673304473186,1.74940258,17220.0,17219.0,0.00084354]
[1673304474702,2.11147758,17220.0,17219.0,0.00084354]
[1673304474948,1.74940258,17220.0,17219.0,0.00084354]
[1673304475719,2.11147758,17220.0,17219.0,0.00084354]
[1673304475932,2.27205369,17220.0,17219.0,0.00084354]
[1673304476219,2.63412869,17220.0,17219.0,0.00084354]
[1673304476718,2.27205369,17220.0,17219.0,0.00084354]
[1673304476977,2.63412869,17220.0,17219.0,0.00084354]
[1673304477755,2.27205369,17220.0,17219.0,0.00084354]
[1673304478012,2.63412869,17220.0,17219.0,0.00084354]
[1673304478480,2.27205369,17220.0,17219.0,0.00084354]
[1673304479020,2.27105369,17220.0,17219.0,0.00084354]
[1673304479272,2.27105369,17220.0,17219.0,0.02784354]
[1673304480041,2.27105369,17220.0,17219.0,0.00084354]
[1673304480299,2.70270243,17220.0,17219.0,0.00084354]
[1673304480557,2.63312869,17220.0,17219.0,0.02784354]
[1673304481321,2.27105369,17220.0,17219.0,0.02784354]
[1673304481580,2.70270243,17220.0,17219.0,0.02784354]
[1673304481828,3.06477743,17220.0,17219.0,0.02762347]
[1673304482853,2.63312869,17220.0,17219.0,0.02762347]
[1673304483111,3.06477743,17220.0,17219.0,0.02762347]
[1673304483368,3.06477743,17220.0,17219.0,0.00062347]
[1673304483880,3.06577743,17220.0,17219.0,0.00662347]
[1673304486048,2.70370243,17220.0,17219.0,0.00662347]
[1673304486301,2.63412869,17220.0,17219.0,0.00662347]
[1673304486808,2.70370243,17220.0,17219.0,0.00662347]
[1673304487055,2.63412869,17220.0,17219.0,0.00662347]
[1673304487585,3.06577743,17220.0,17219.0,0.00662347]
[1673304489130,2.63412869,17220.0,17219.0,0.00662347]
[1673304489395,2.27205369,17220.0,17219.0,0.00662347]
[1673304491626,1.74940258,17220.0,17219.0,0.00662347]
[1673304493686,2.63412869,17220.0,17219.0,0.00662347]
[1673304493929,1.74940258,17220.0,17219.0,0.00662347]
[1673304494188,2.63412869,17220.0,17219.0,0.00662347]
[1673304495430,2.27205369,17220.0,17219.0,0.00662347]
[1673304495676,2.63412869,17220.0,17219.0,0.00662347]
[1673304495924,1.74940258,17220.0,17219.0,0.00662347]
[1673304499397,1.74840258,17220.0,17219.0,0.00062347]
[1673304500186,1.74940258,17220.0,17219.0,0.00062347]
[1673304502788,2.27205369,17220.0,17219.0,0.00062347]
[1673304503024,1.74940258,17220.0,17219.0,0.00062347]
[1673304506273,1.74840258,17220.0,17219.0,0.00062347]
[1673304506516,1.74840258,17220.0,17219.0,0.02762347]
[1673304506755,1.74840258,17220.0,17219.0,0.00062347]
[1673304507016,1.74940258,17220.0,17219.0,0.00062347]
[1673304509666,1.74840258,17220.0,17219.0,0.00062347]
[1673304510164,1.74840258,17220.0,17219.0,0.02762347]
[1673304510411,1.74840258,17220.0,17219.0,0.00062347]
[1673304510655,1.74940258,17220.0,17219.0,0.00062347]
[1673304517728,0.87699487,17220.0,17219.0,0.00062347]
[1673304517966,0.87699487,17220.0,17219.0,0.02762347]
[1673304518685,0.87799487,17220.0,17219.0,0.00062347]
[1673304519657,1.74941074,17220.0,17219.0,0.00062347]
[1673304520889,2.11148574,17220.0,17219.0,0.00062347]
[1673304522126,1.74941074,17220.0,17219.0,0.00062347]
[1673304527760,0.87799487,17220.0,17219.0,0.00062347]